[Event "SELL Games"]
[Site "Tartu, Estonia"]
[Date "2023.05.19"]
[Round "2.8"]
[White "Vaskevicius, Augustas"]
[Black "Piksis, Davids"]
[Result "0-1"]
[TimeControl "15min + 10sec per move each"]
[WhiteFideId "12808008"]
[BlackFideId "11609117"]
[WhiteElo "1904"]
[BlackElo "1770"]

1. Nf3 {[%clk 00:15:15]} {[%emt 00:00:04]} d5 {[%clk 00:15:17]} {[%emt
00:00:04]} 2. e3 {[%clk 00:15:20]} {[%emt 00:00:04]} Nf6 {[%clk 00:15:18]}
{[%emt 00:00:09]} 3. c4 {[%clk 00:15:29]} {[%emt 00:00:02]} e6 {[%clk
00:15:18]} {[%emt 00:00:10]} 4. d4 {[%clk 00:14:44]} {[%emt 00:00:53]} dxc4
{[%clk 00:15:06]} {[%emt 00:00:23]} 5. Bxc4 {[%clk 00:14:01]} {[%emt 00:00:53]}
c5 {[%clk 00:15:07]} {[%emt 00:00:09]} 6. O-O {[%clk 00:12:22]} {[%emt
00:01:49]} cxd4 {[%clk 00:14:47]} {[%emt 00:00:30]} 7. Nxd4 {[%clk 00:11:48]}
{[%emt 00:00:44]} Be7 {[%clk 00:14:12]} {[%emt 00:00:45]} 8. Qb3 {[%clk
00:09:47]} {[%emt 00:02:11]} O-O {[%clk 00:13:47]} {[%emt 00:00:35]} 9. Rd1
{[%clk 00:07:59]} {[%emt 00:01:57]} Qa5 {[%clk 00:10:07]} {[%emt 00:03:51]} 10.
Bd2 {[%clk 00:05:50]} {[%emt 00:02:19]} Qh5 {[%clk 00:08:48]} {[%emt 00:01:29]}
11. Be2 {[%clk 00:03:22]} {[%emt 00:02:37]} Qd5 {[%clk 00:08:29]} {[%emt
00:00:29]} 12. Bf3 {[%clk 00:02:39]} {[%emt 00:00:53]} Qd7 {[%clk 00:05:41]}
{[%emt 00:02:59]} 13. Bb4 {[%clk 00:02:01]} {[%emt 00:00:47]} Bxb4 {[%clk
00:05:12]} {[%emt 00:00:39]} 14. Qxb4 {[%clk 00:01:52]} {[%emt 00:00:20]} a5
{[%clk 00:04:06]} {[%emt 00:01:16]} 15. Qb3 {[%clk 00:01:23]} {[%emt 00:00:38]}
Na6 {[%clk 00:03:48]} {[%emt 00:00:28]} 16. Nc3 {[%clk 00:01:05]} {[%emt
00:00:28]} Qe7 {[%clk 00:02:35]} {[%emt 00:01:24]} 17. Rac1 {[%clk 00:00:47]}
{[%emt 00:00:28]} Rb8 {[%clk 00:02:09]} {[%emt 00:00:35]} 18. Qb6 {[%clk
00:00:27]} {[%emt 00:00:30]} Qc5 {[%clk 00:01:48]} {[%emt 00:00:31]} 19. Qxc5
{[%clk 00:00:25]} {[%emt 00:00:12]} Nxc5 {[%clk 00:01:57]} 20. Ncb5 {[%clk
00:00:25]} {[%emt 00:00:10]} Nce4 {[%clk 00:01:23]} {[%emt 00:00:43]} 21. Rc7
{[%clk 00:00:18]} {[%emt 00:00:17]} Rd8 {[%clk 00:01:07]} {[%emt 00:00:26]} 22.
Bxe4 {[%clk 00:00:13]} {[%emt 00:00:15]} Nxe4 {[%clk 00:01:16]} {[%emt
00:00:02]} 23. Rdc1 {[%clk 00:00:15]} {[%emt 00:00:08]} Nf6 {[%clk 00:01:01]}
{[%emt 00:00:25]} 24. a3 {[%clk 00:00:12]} {[%emt 00:00:13]} Nd5 {[%clk
00:01:08]} {[%emt 00:00:02]} 25. R7c5 {[%clk 00:00:18]} {[%emt 00:00:05]} Bd7
{[%clk 00:00:49]} {[%emt 00:00:29]} 26. Nc7 {[%clk 00:00:17]} {[%emt 00:00:11]}
b6 {[%clk 00:00:35]} {[%emt 00:00:24]} 27. R5c4 {[%clk 00:00:14]} {[%emt
00:00:13]} b5 {[%clk 00:00:25]} {[%emt 00:00:20]} 28. Rc5 {[%clk 00:00:21]}
{[%emt 00:00:03]} Nxc7 {[%clk 00:00:18]} {[%emt 00:00:18]} 29. Rxc7 {[%clk
00:00:30]} {[%emt 00:00:02]} b4 {[%clk 00:00:25]} {[%emt 00:00:03]} 30. axb4
{[%clk 00:00:23]} {[%emt 00:00:17]} axb4 {[%clk 00:00:28]} {[%emt 00:00:07]} 31.
Rd1 {[%clk 00:00:17]} {[%emt 00:00:16]} e5 {[%clk 00:00:18]} {[%emt 00:00:20]}
32. Nf3 {[%clk 00:00:17]} {[%emt 00:00:10]} Bg4 {[%clk 00:00:15]} {[%emt
00:00:13]} 33. Rxd8+ {[%clk 00:00:20]} {[%emt 00:00:07]} Rxd8 {[%clk 00:00:25]}
34. h3 {[%clk 00:00:27]} {[%emt 00:00:02]} Bxf3 35. gxf3 {[%clk 00:00:36]} Rb8
{[%clk 00:00:20]} {[%emt 00:00:23]} 36. Kf1 {[%clk 00:00:38]} {[%emt 00:00:08]}
g5 {[%clk 00:00:16]} {[%emt 00:00:14]} 37. Ke2 {[%clk 00:00:45]} {[%emt
00:00:04]} Kg7 {[%clk 00:00:21]} {[%emt 00:00:05]} 38. Rc5 {[%clk 00:00:43]}
{[%emt 00:00:12]} f6 {[%clk 00:00:27]} {[%emt 00:00:04]} 39. Rc4 {[%clk
00:00:20]} {[%emt 00:00:32]} Kg6 {[%clk 00:00:30]} {[%emt 00:00:07]} 40. Kd3
{[%clk 00:00:23]} {[%emt 00:00:08]} h5 {[%clk 00:00:17]} {[%emt 00:00:24]} 41.
Kc2 {[%clk 00:00:18]} {[%emt 00:00:15]} Kf5 {[%clk 00:00:16]} {[%emt 00:00:11]}
42. Kb3 {[%clk 00:00:21]} {[%emt 00:00:07]} Rd8 {[%clk 00:00:18]} {[%emt
00:00:09]} 43. Kxb4 {[%clk 00:00:13]} {[%emt 00:00:18]} Rd2 {[%clk 00:00:25]}
{[%emt 00:00:03]} 44. Kc3 {[%clk 00:00:22]} {[%emt 00:00:01]} Rxf2 {[%clk
00:00:32]} {[%emt 00:00:02]} 45. b4 {[%clk 00:00:31]} Rxf3 {[%clk 00:00:28]}
{[%emt 00:00:14]} 46. b5 {[%clk 00:00:35]} {[%emt 00:00:06]} Rxe3+ {[%clk
00:00:32]} {[%emt 00:00:07]} 47. Kb4 {[%clk 00:00:44]} g4 {[%clk 00:00:26]}
{[%emt 00:00:16]} 48. hxg4+ {[%clk 00:00:32]} {[%emt 00:00:22]} hxg4 {[%clk
00:00:35]} {[%emt 00:00:01]} 49. b6 {[%clk 00:00:33]} {[%emt 00:00:09]} Re1
{[%clk 00:00:24]} {[%emt 00:00:20]} 50. Kb5 {[%clk 00:00:24]} {[%emt 00:00:19]}
Rb1+ {[%clk 00:00:18]} {[%emt 00:00:16]} 51. Rb4 {[%clk 00:00:29]} {[%emt
00:00:05]} Rxb4+ {[%clk 00:00:22]} {[%emt 00:00:06]} 52. Kxb4 {[%clk 00:00:38]}
{[%emt 00:00:01]} g3 {[%clk 00:00:31]} 53. b7 {[%clk 00:00:46]} {[%emt
00:00:02]} g2 {[%clk 00:00:41]} {[%emt 00:00:01]} 54. b8=Q {[%clk 00:00:51]}
{[%emt 00:00:05]} g1=Q {[%clk 00:00:48]} {[%emt 00:00:02]} 55. Qc8+ {[%clk
00:00:43]} {[%emt 00:00:19]} Kf4 {[%clk 00:00:53]} {[%emt 00:00:05]} 56. Qe6
{[%clk 00:00:41]} {[%emt 00:00:12]} Qd4+ {[%clk 00:00:52]} {[%emt 00:00:10]} 57.
Kb3 {[%clk 00:00:45]} {[%emt 00:00:06]} e4 {[%clk 00:00:46]} {[%emt 00:00:17]}
58. Qc6 {[%clk 00:00:33]} {[%emt 00:00:22]} f5 {[%clk 00:00:38]} {[%emt
00:00:18]} 59. Qc7+ {[%clk 00:00:33]} {[%emt 00:00:09]} Kf3 {[%clk 00:00:42]}
{[%emt 00:00:06]} 60. Qh2 {[%clk 00:00:36]} {[%emt 00:00:07]} Qd1+ {[%clk
00:00:31]} {[%emt 00:00:21]} 61. Kc3 {[%clk 00:00:38]} {[%emt 00:00:09]} Qe1+
{[%clk 00:00:37]} {[%emt 00:00:04]} 62. Kd4 {[%clk 00:00:41]} {[%emt 00:00:07]}
Qf2+ {[%clk 00:00:43]} {[%emt 00:00:04]} 0-1

[Event "SELL Games"]
[Site "Tartu, Estonia"]
[Date "2023.05.19"]
[Round "3.1"]
[White "Vanagas, Tadas"]
[Black "Laurusas, Tomas"]
[Result "0-1"]
[TimeControl "15min + 10sec per move each"]
[BlackTitle "GM"]
[WhiteFideId "12805467"]
[BlackFideId "12803731"]
[WhiteElo "2225"]
[BlackElo "2504"]

1. e4 {[%clk 00:15:19]} c5 {[%clk 00:15:12]} {[%emt 00:00:09]} 2. Nf3 {[%clk
00:15:27]} {[%emt 00:00:02]} e6 {[%clk 00:15:17]} {[%emt 00:00:02]} 3. d4
{[%clk 00:15:36]} cxd4 {[%clk 00:15:25]} 4. Nxd4 {[%clk 00:15:45]} a6 {[%clk
00:15:32]} {[%emt 00:00:03]} 5. Nc3 {[%clk 00:15:40]} {[%emt 00:00:15]} Qc7
{[%clk 00:15:41]} {[%emt 00:00:02]} 6. Be3 {[%clk 00:15:47]} {[%emt 00:00:03]}
Nf6 {[%clk 00:15:48]} {[%emt 00:00:03]} 7. a3 {[%clk 00:15:52]} {[%emt
00:00:05]} b5 {[%clk 00:15:19]} {[%emt 00:00:39]} 8. Bd3 {[%clk 00:13:44]}
{[%emt 00:02:18]} Bb7 {[%clk 00:15:22]} {[%emt 00:00:06]} 9. Qe2 {[%clk
00:13:42]} {[%emt 00:00:12]} d6 {[%clk 00:14:50]} {[%emt 00:00:42]} 10. g4
{[%clk 00:13:23]} {[%emt 00:00:30]} d5 {[%clk 00:13:29]} {[%emt 00:01:31]} 11.
exd5 {[%clk 00:11:19]} {[%emt 00:02:14]} b4 {[%clk 00:13:38]} {[%emt 00:00:01]}
12. axb4 {[%clk 00:08:38]} {[%emt 00:02:51]} Bxb4 {[%clk 00:13:41]} {[%emt
00:00:07]} 13. O-O {[%clk 00:08:18]} {[%emt 00:00:30]} Bxc3 {[%clk 00:13:34]}
{[%emt 00:00:17]} 14. bxc3 {[%clk 00:08:26]} {[%emt 00:00:02]} Nxd5 {[%clk
00:13:39]} {[%emt 00:00:05]} 15. f4 {[%clk 00:07:27]} {[%emt 00:01:08]} Nxc3
{[%clk 00:13:12]} {[%emt 00:00:36]} 16. Qf2 {[%clk 00:07:21]} {[%emt 00:00:16]}
Nc6 {[%clk 00:11:33]} {[%emt 00:01:49]} 17. f5 {[%clk 00:06:03]} {[%emt
00:01:28]} e5 {[%clk 00:10:06]} {[%emt 00:01:37]} 18. Ne2 {[%clk 00:05:02]}
{[%emt 00:01:11]} Nxe2+ {[%clk 00:08:59]} {[%emt 00:01:16]} 19. Bxe2 {[%clk
00:05:11]} {[%emt 00:00:02]} f6 {[%clk 00:08:22]} {[%emt 00:00:47]} 20. Bb6
{[%clk 00:05:02]} {[%emt 00:00:19]} Qf7 {[%clk 00:08:18]} {[%emt 00:00:14]} 21.
Qc5 {[%clk 00:04:24]} {[%emt 00:00:48]} Nd4 {[%clk 00:07:33]} {[%emt 00:00:55]}
22. Bc4 {[%clk 00:04:18]} {[%emt 00:00:16]} Qd7 {[%clk 00:07:03]} {[%emt
00:00:39]} 23. Rad1 {[%clk 00:02:56]} {[%emt 00:01:33]} Rc8 {[%clk 00:04:23]}
{[%emt 00:02:50]} 24. Rxd4 {[%clk 00:03:04]} {[%emt 00:00:02]} Qxd4+ {[%clk
00:04:25]} {[%emt 00:00:08]} 25. Qxd4 {[%clk 00:03:13]} {[%emt 00:00:02]} exd4
26. Re1+ Kd7 {[%clk 00:02:37]} {[%emt 00:02:07]} 27. Be6+ {[%clk 00:03:31]}
{[%emt 00:00:01]} Kd6 {[%clk 00:02:45]} {[%emt 00:00:01]} 28. Bxc8 {[%clk
00:02:28]} {[%emt 00:01:14]} Rxc8 {[%clk 00:02:54]} 29. Re6+ {[%clk 00:01:44]}
{[%emt 00:00:53]} Kd7 {[%clk 00:03:03]} {[%emt 00:00:02]} 30. Re2 {[%clk
00:01:44]} {[%emt 00:00:10]} Bf3 {[%clk 00:01:48]} {[%emt 00:01:25]} 31. Rd2
{[%clk 00:00:54]} {[%emt 00:01:01]} Kc6 {[%clk 00:01:57]} 32. Bxd4 {[%clk
00:00:55]} {[%emt 00:00:09]} Bxg4 {[%clk 00:02:06]} 33. Rg2 {[%clk 00:00:52]}
{[%emt 00:00:14]} h5 {[%clk 00:02:12]} {[%emt 00:00:03]} 34. h3 {[%clk
00:00:40]} {[%emt 00:00:23]} Bxh3 {[%clk 00:02:17]} {[%emt 00:00:05]} 35. Rxg7
{[%clk 00:00:48]} {[%emt 00:00:02]} Bxf5 {[%clk 00:02:20]} {[%emt 00:00:06]} 36.
Bxf6 {[%clk 00:00:28]} {[%emt 00:00:31]} Bxc2 {[%clk 00:02:27]} {[%emt
00:00:04]} 37. Rg5 {[%clk 00:00:37]} Bd1 {[%clk 00:02:16]} {[%emt 00:00:21]} 38.
Bd4 {[%clk 00:00:27]} {[%emt 00:00:20]} Ra8 {[%clk 00:01:30]} {[%emt 00:00:56]}
39. Bc3 {[%clk 00:00:33]} {[%emt 00:00:04]} Rf8 {[%clk 00:01:20]} {[%emt
00:00:18]} 40. Kg2 {[%clk 00:00:33]} {[%emt 00:00:13]} Bf3+ {[%clk 00:01:21]}
{[%emt 00:00:09]} 41. Kh2 {[%clk 00:00:39]} {[%emt 00:00:05]} Bg4 {[%clk
00:01:22]} {[%emt 00:00:09]} 42. Bd4 {[%clk 00:00:42]} {[%emt 00:00:07]} Rd8
{[%clk 00:01:07]} {[%emt 00:00:25]} 43. Rc5+ {[%clk 00:00:35]} {[%emt
00:00:17]} Kb7 {[%clk 00:01:14]} {[%emt 00:00:02]} 44. Be3 {[%clk 00:00:27]}
{[%emt 00:00:18]} Rd3 {[%clk 00:01:21]} {[%emt 00:00:04]} 45. Bf2 {[%clk
00:00:27]} {[%emt 00:00:10]} Rh3+ {[%clk 00:01:11]} {[%emt 00:00:19]} 46. Kg2
{[%clk 00:00:36]} {[%emt 00:00:01]} Ra3 {[%clk 00:01:20]} {[%emt 00:00:01]} 47.
Be1 {[%clk 00:00:28]} {[%emt 00:00:18]} Ra2+ {[%clk 00:01:11]} {[%emt
00:00:19]} 48. Kg3 {[%clk 00:00:27]} {[%emt 00:00:12]} Kb6 {[%clk 00:01:15]}
{[%emt 00:00:06]} 49. Rg5 {[%clk 00:00:30]} {[%emt 00:00:06]} Ra3+ {[%clk
00:01:23]} {[%emt 00:00:03]} 50. Kg2 {[%clk 00:00:32]} {[%emt 00:00:08]} a5
{[%clk 00:01:28]} {[%emt 00:00:05]} 51. Bf2+ {[%clk 00:00:36]} {[%emt
00:00:05]} Kc6 {[%clk 00:01:37]} 52. Rc5+ {[%clk 00:00:29]} {[%emt 00:00:18]}
Kd7 {[%clk 00:01:44]} {[%emt 00:00:03]} 53. Rd5+ {[%clk 00:00:23]} {[%emt
00:00:16]} Ke6 {[%clk 00:01:50]} {[%emt 00:00:03]} 54. Rb5 {[%clk 00:00:31]}
{[%emt 00:00:02]} a4 {[%clk 00:01:50]} {[%emt 00:00:10]} 55. Ra5 {[%clk
00:00:36]} {[%emt 00:00:05]} Bf3+ {[%clk 00:01:40]} {[%emt 00:00:20]} 56. Kg3
{[%clk 00:00:32]} {[%emt 00:00:15]} Bg4+ {[%emt 00:00:18]} 57. Kg2 Bd1 {[%clk
00:01:23]} {[%emt 00:00:18]} 58. Bc5 {[%clk 00:00:34]} {[%emt 00:00:18]} Rd3
{[%clk 00:01:21]} {[%emt 00:00:13]} 59. Bb4 {[%clk 00:00:37]} {[%emt 00:00:08]}
Rd4 {[%clk 00:00:48]} {[%emt 00:00:43]} 60. Bc3 {[%clk 00:00:42]} {[%emt
00:00:05]} Rc4 {[%clk 00:00:56]} {[%emt 00:00:01]} 61. Ba1 {[%clk 00:00:37]}
{[%emt 00:00:16]} Kd6 {[%clk 00:00:54]} {[%emt 00:00:12]} 62. Kg3 {[%clk
00:00:33]} {[%emt 00:00:13]} Kc6 {[%clk 00:01:02]} {[%emt 00:00:02]} 63. Kf2
{[%clk 00:00:24]} {[%emt 00:00:19]} Bg4 {[%clk 00:00:59]} {[%emt 00:00:14]} 64.
Kg3 {[%clk 00:00:25]} {[%emt 00:00:10]} Kb6 {[%clk 00:00:56]} {[%emt 00:00:12]}
65. Ra8 {[%clk 00:00:32]} {[%emt 00:00:03]} Bd7 {[%clk 00:00:31]} {[%emt
00:00:35]} 66. Bf6 {[%clk 00:00:36]} {[%emt 00:00:06]} h4+ {[%clk 00:00:33]}
{[%emt 00:00:08]} 67. Kf2 {[%clk 00:00:21]} {[%emt 00:00:25]} Rf4+ {[%clk
00:00:41]} {[%emt 00:00:02]} 0-1

[Event "SELL Games"]
[Site "Tartu, Estonia"]
[Date "2023.05.19"]
[Round "3.2"]
[White "Stauskas, Lukas"]
[Black "Sirp, Karl Aleksander"]
[Result "1/2-1/2"]
[TimeControl "15min + 10sec per move each"]
[WhiteFideId "12808148"]
[BlackFideId "4504712"]
[WhiteElo "2296"]
[BlackElo "2033"]

1. d4 {[%clk 00:15:18]} {[%emt 00:00:02]} Nf6 {[%clk 00:15:17]} {[%emt
00:00:03]} 2. c4 {[%clk 00:15:27]} {[%emt 00:00:02]} e6 {[%clk 00:15:16]}
{[%emt 00:00:11]} 3. Nc3 {[%clk 00:15:35]} {[%emt 00:00:01]} d5 {[%clk
00:15:24]} {[%emt 00:00:01]} 4. cxd5 {[%clk 00:15:40]} {[%emt 00:00:06]} exd5
{[%clk 00:15:30]} {[%emt 00:00:03]} 5. Bg5 {[%clk 00:15:47]} {[%emt 00:00:03]}
c6 {[%clk 00:15:31]} {[%emt 00:00:10]} 6. e3 {[%clk 00:15:55]} {[%emt
00:00:02]} Be7 {[%clk 00:15:32]} {[%emt 00:00:09]} 7. Bd3 {[%clk 00:16:02]}
{[%emt 00:00:03]} O-O {[%clk 00:15:38]} {[%emt 00:00:04]} 8. Nge2 {[%clk
00:15:55]} {[%emt 00:00:17]} Bg4 {[%clk 00:15:28]} {[%emt 00:00:19]} 9. f3
{[%clk 00:15:57]} {[%emt 00:00:09]} Bh5 {[%clk 00:15:36]} 10. Nf4 {[%clk
00:14:45]} {[%emt 00:01:23]} Nbd7 {[%clk 00:15:04]} {[%emt 00:00:42]} 11. O-O
{[%clk 00:14:33]} {[%emt 00:00:21]} Bg6 {[%clk 00:14:54]} {[%emt 00:00:20]} 12.
Nxg6 {[%clk 00:14:32]} {[%emt 00:00:11]} hxg6 {[%clk 00:15:02]} {[%emt
00:00:02]} 13. Bh4 {[%clk 00:14:13]} {[%emt 00:00:29]} Qb6 {[%clk 00:14:00]}
{[%emt 00:01:12]} 14. Qd2 {[%clk 00:14:01]} {[%emt 00:00:23]} c5 {[%clk
00:13:06]} {[%emt 00:01:05]} 15. Na4 {[%clk 00:13:53]} {[%emt 00:00:17]} Qc6
{[%clk 00:12:49]} {[%emt 00:00:27]} 16. Nxc5 {[%clk 00:13:52]} {[%emt
00:00:11]} Nxc5 {[%clk 00:12:53]} {[%emt 00:00:07]} 17. dxc5 {[%clk 00:13:59]}
{[%emt 00:00:02]} Bxc5 {[%clk 00:12:13]} {[%emt 00:00:50]} 18. Bf2 {[%clk
00:13:42]} {[%emt 00:00:26]} Rad8 {[%clk 00:12:01]} {[%emt 00:00:23]} 19. a3
{[%clk 00:13:42]} {[%emt 00:00:11]} Ne4 {[%clk 00:11:28]} {[%emt 00:00:42]} 20.
Bxe4 {[%clk 00:11:43]} {[%emt 00:02:09]} dxe4 {[%clk 00:11:36]} {[%emt
00:00:02]} 21. Qe2 {[%clk 00:11:39]} {[%emt 00:00:14]} Rd3 {[%clk 00:09:28]}
{[%emt 00:02:18]} 22. Rac1 {[%clk 00:11:47]} {[%emt 00:00:03]} Qb6 {[%clk
00:09:16]} {[%emt 00:00:23]} 23. fxe4 {[%clk 00:11:01]} {[%emt 00:00:55]} Rfd8
{[%clk 00:07:42]} {[%emt 00:01:45]} 24. Kh1 {[%clk 00:07:17]} {[%emt 00:03:54]}
Bxe3 {[%clk 00:05:37]} {[%emt 00:02:14]} 25. Bxe3 {[%clk 00:07:25]} {[%emt
00:00:02]} Rxe3 {[%clk 00:05:46]} {[%emt 00:00:02]} 26. Qf2 {[%clk 00:07:20]}
{[%emt 00:00:14]} Rf8 {[%clk 00:05:40]} {[%emt 00:00:17]} 27. Qf4 {[%clk
00:06:15]} {[%emt 00:01:15]} Re2 {[%clk 00:04:15]} {[%emt 00:01:35]} 28. b4
{[%clk 00:06:01]} {[%emt 00:00:23]} Qe6 {[%clk 00:03:33]} {[%emt 00:00:53]} 29.
Rc7 {[%clk 00:05:19]} {[%emt 00:00:52]} Rxe4 {[%clk 00:03:24]} {[%emt
00:00:19]} 30. Qf3 {[%clk 00:05:26]} {[%emt 00:00:02]} Re3 {[%clk 00:03:08]}
{[%emt 00:00:27]} 31. Qxb7 {[%clk 00:05:12]} {[%emt 00:00:25]} Rxa3 {[%clk
00:02:57]} {[%emt 00:00:21]} 32. h3 {[%clk 00:04:52]} {[%emt 00:00:29]} Rxh3+
{[%clk 00:00:41]} {[%emt 00:02:26]} 33. gxh3 {[%clk 00:04:53]} {[%emt
00:00:09]} Qxh3+ {[%clk 00:00:50]} {[%emt 00:00:02]} 34. Kg1 {[%clk 00:04:56]}
{[%emt 00:00:06]} Qg3+ {[%clk 00:00:59]} {[%emt 00:00:02]} 35. Kh1 {[%clk
00:05:05]} Qh3+ {[%clk 00:01:08]} 1/2-1/2

[Event "SELL Games"]
[Site "Tartu, Estonia"]
[Date "2023.05.19"]
[Round "3.3"]
[White "Bekasovs, Rihards"]
[Black "Vardanyan, Aras"]
[Result "0-1"]
[TimeControl "15min + 10sec per move each"]
[BlackTitle "FM"]
[WhiteFideId "11606029"]
[BlackFideId "12808792"]
[WhiteElo "2107"]
[BlackElo "2255"]

1. Nf3 {[%clk 00:15:19]} d5 {[%clk 00:15:18]} {[%emt 00:00:02]} 2. c4 {[%clk
00:15:27]} {[%emt 00:00:02]} d4 {[%clk 00:15:27]} {[%emt 00:00:01]} 3. b4
{[%clk 00:15:37]} f6 {[%clk 00:15:27]} {[%emt 00:00:10]} 4. d3 {[%clk
00:15:36]} {[%emt 00:00:10]} e5 {[%clk 00:15:33]} {[%emt 00:00:03]} 5. Qb3
{[%clk 00:15:43]} {[%emt 00:00:04]} a5 {[%clk 00:15:29]} {[%emt 00:00:15]} 6.
bxa5 {[%clk 00:15:32]} {[%emt 00:00:20]} Rxa5 {[%clk 00:15:17]} {[%emt
00:00:23]} 7. g3 {[%clk 00:15:39]} {[%emt 00:00:02]} Na6 {[%clk 00:15:06]}
{[%emt 00:00:21]} 8. Bg2 {[%clk 00:15:21]} {[%emt 00:00:28]} Bb4+ {[%clk
00:15:14]} {[%emt 00:00:02]} 9. Bd2 {[%clk 00:15:18]} {[%emt 00:00:12]} Bxd2+
{[%clk 00:15:14]} {[%emt 00:00:10]} 10. Nbxd2 {[%clk 00:15:00]} {[%emt
00:00:28]} Ne7 {[%clk 00:15:23]} {[%emt 00:00:02]} 11. O-O {[%clk 00:14:51]}
{[%emt 00:00:19]} O-O {[%clk 00:15:31]} {[%emt 00:00:03]} 12. Rfb1 {[%clk
00:14:43]} {[%emt 00:00:17]} Nc5 {[%clk 00:14:54]} {[%emt 00:00:47]} 13. Qc2
{[%clk 00:14:18]} {[%emt 00:00:36]} Na4 {[%clk 00:14:47]} {[%emt 00:00:18]} 14.
Rb3 {[%clk 00:13:40]} {[%emt 00:00:48]} b6 {[%clk 00:14:31]} {[%emt 00:00:25]}
15. Rb5 {[%clk 00:10:34]} {[%emt 00:03:15]} Ra7 {[%clk 00:13:48]} {[%emt
00:00:54]} 16. Rb4 {[%clk 00:10:17]} {[%emt 00:00:27]} Bd7 {[%clk 00:13:27]}
{[%emt 00:00:30]} 17. Ne1 {[%clk 00:09:35]} {[%emt 00:00:52]} c5 {[%clk
00:13:07]} {[%emt 00:00:30]} 18. Rb3 {[%clk 00:08:30]} {[%emt 00:01:15]} Nc3
{[%clk 00:13:14]} {[%emt 00:00:03]} 19. Rxc3 {[%clk 00:08:34]} {[%emt
00:00:07]} dxc3 {[%clk 00:13:22]} 20. Qxc3 {[%clk 00:08:42]} {[%emt 00:00:02]}
Bc6 {[%clk 00:13:30]} {[%emt 00:00:03]} 21. Nef3 {[%clk 00:05:57]} {[%emt
00:02:54]} Kh8 {[%clk 00:12:40]} {[%emt 00:01:00]} 22. Qb2 {[%clk 00:05:55]}
{[%emt 00:00:12]} Ra6 {[%clk 00:12:20]} {[%emt 00:00:30]} 23. Nb1 {[%clk
00:05:21]} {[%emt 00:00:44]} Nf5 {[%clk 00:11:13]} {[%emt 00:01:18]} 24. Nc3
{[%clk 00:05:18]} {[%emt 00:00:13]} Qd6 {[%clk 00:09:35]} {[%emt 00:01:47]} 25.
Rb1 {[%clk 00:04:31]} {[%emt 00:00:58]} Rfa8 {[%clk 00:09:34]} {[%emt
00:00:11]} 26. Ne1 {[%clk 00:03:54]} {[%emt 00:00:46]} Bxg2 {[%clk 00:09:26]}
{[%emt 00:00:19]} 27. Nxg2 {[%clk 00:03:58]} {[%emt 00:00:05]} Qd4 {[%clk
00:09:13]} {[%emt 00:00:23]} 28. a4 {[%clk 00:03:43]} {[%emt 00:00:26]} e4
{[%clk 00:08:39]} {[%emt 00:00:43]} 29. Nxe4 {[%clk 00:02:10]} {[%emt
00:01:43]} Qxb2 {[%clk 00:08:29]} {[%emt 00:00:20]} 30. Rxb2 {[%clk 00:02:19]}
{[%emt 00:00:01]} Rxa4 {[%clk 00:08:38]} {[%emt 00:00:01]} 31. Nf4 {[%clk
00:02:27]} {[%emt 00:00:02]} Rb4 {[%clk 00:08:42]} {[%emt 00:00:06]} 32. Rd2
{[%clk 00:02:28]} {[%emt 00:00:09]} Nd4 {[%clk 00:08:41]} {[%emt 00:00:10]} 33.
Nd5 {[%clk 00:02:33]} {[%emt 00:00:05]} Rb1+ {[%clk 00:08:37]} {[%emt
00:00:15]} 34. Kg2 {[%clk 00:02:41]} f5 {[%clk 00:07:48]} {[%emt 00:01:00]} 35.
Nd6 {[%clk 00:01:45]} {[%emt 00:01:06]} g6 {[%clk 00:07:44]} {[%emt 00:00:14]}
36. e3 {[%clk 00:01:13]} {[%emt 00:00:41]} Ne6 {[%clk 00:07:32]} {[%emt
00:00:22]} 37. d4 {[%clk 00:00:43]} {[%emt 00:00:40]} Raa1 {[%clk 00:07:36]}
{[%emt 00:00:05]} 38. h4 {[%clk 00:00:40]} {[%emt 00:00:13]} cxd4 {[%clk
00:06:37]} {[%emt 00:01:09]} 39. exd4 {[%clk 00:00:42]} {[%emt 00:00:08]} Rd1
{[%clk 00:06:34]} {[%emt 00:00:13]} 40. Rxd1 {[%clk 00:00:20]} {[%emt
00:00:33]} Rxd1 {[%clk 00:06:43]} {[%emt 00:00:01]} 41. Nxb6 {[%clk 00:00:27]}
{[%emt 00:00:03]} Rxd4 {[%clk 00:06:51]} {[%emt 00:00:02]} 42. Nb5 {[%clk
00:00:36]} {[%emt 00:00:02]} Rd2 {[%clk 00:06:54]} {[%emt 00:00:05]} 43. Nd5
{[%clk 00:00:38]} {[%emt 00:00:09]} Nc5 {[%clk 00:07:01]} {[%emt 00:00:03]} 44.
Nf4 {[%clk 00:00:33]} {[%emt 00:00:14]} Ne4 {[%clk 00:07:03]} {[%emt 00:00:08]}
45. Nh3 {[%clk 00:00:42]} Rc2 {[%clk 00:07:09]} {[%emt 00:00:05]} 46. Nc7
{[%clk 00:00:44]} {[%emt 00:00:08]} Rxc4 {[%clk 00:07:13]} {[%emt 00:00:06]} 47.
Nd5 {[%clk 00:00:53]} Kg7 {[%clk 00:07:19]} {[%emt 00:00:03]} 48. Ne3 {[%clk
00:01:01]} {[%emt 00:00:02]} Ra4 {[%clk 00:07:28]} {[%emt 00:00:01]} 49. Nf4
{[%clk 00:01:06]} {[%emt 00:00:05]} Ra2 {[%clk 00:07:37]} {[%emt 00:00:02]} 50.
Nh3 {[%clk 00:01:12]} {[%emt 00:00:03]} Kf6 {[%clk 00:07:46]} {[%emt 00:00:01]}
51. Nd5+ {[%clk 00:01:17]} {[%emt 00:00:05]} Ke5 {[%clk 00:07:55]} {[%emt
00:00:01]} 52. Ne3 {[%clk 00:01:26]} Kd4 {[%clk 00:08:01]} {[%emt 00:00:03]} 53.
Nf1 {[%clk 00:01:00]} {[%emt 00:00:36]} h6 {[%clk 00:07:49]} {[%emt 00:00:22]}
54. Kg1 {[%clk 00:00:59]} {[%emt 00:00:11]} Ke5 {[%clk 00:06:38]} {[%emt
00:01:22]} 55. Ne3 {[%clk 00:01:00]} {[%emt 00:00:08]} Re2 {[%clk 00:06:35]}
{[%emt 00:00:13]} 56. Ng2 {[%clk 00:00:50]} {[%emt 00:00:21]} Ra2 {[%clk
00:06:16]} {[%emt 00:00:28]} 57. Ne3 {[%clk 00:00:54]} {[%emt 00:00:05]} Kd4
{[%clk 00:06:23]} {[%emt 00:00:03]} 58. Nf1 {[%clk 00:00:53]} {[%emt 00:00:11]}
Rb2 {[%clk 00:06:00]} {[%emt 00:00:34]} 59. Kg2 {[%clk 00:00:51]} {[%emt
00:00:12]} g5 {[%clk 00:06:08]} {[%emt 00:00:02]} 60. hxg5 {[%clk 00:01:00]}
{[%emt 00:00:01]} hxg5 {[%clk 00:06:17]} {[%emt 00:00:01]} 61. Ne3 {[%clk
00:00:14]} {[%emt 00:00:56]} g4 {[%clk 00:06:21]} {[%emt 00:00:06]} 62. Nxf5+
{[%clk 00:00:13]} {[%emt 00:00:11]} Ke5 {[%clk 00:06:29]} {[%emt 00:00:01]} 0-1